[Event "Guimaraes Open 2018"]
[Site "Guimaraes"]
[Date "2018.10.07"]
[Round "6"]
[White "Santos, Jose Guilherme Barr"]
[Black "Barrento, Jorge Maria Lopes"]
[Result "1-0"]
[ECO "B01"]
[WhiteElo "2108"]
[BlackElo "1696"]
[Annotator "NA"]
[PlyCount "161"]
[EventDate "2018.10.04"]
[EventType "swiss"]
[EventCountry "POR"]
[SourceTitle "playchess.com"]
[Source "ChessBase"]
[SourceQuality "1"]
[TimeControl "5400+30"]

1. e4 {[%emt 0:00:00]} d5 {[%emt 0:05:22]} 2. exd5 {[%emt 0:00:17]} Nf6 {[%emt 0:01:09]} 3. d4 {[%emt 0:00:18]} Bg4 {[%emt 0:00:13]} 4. Bb5+ {[%emt 0:02:48]} Nbd7 {[%emt 0:01:30]} 5. f3 {[%emt 0:05:46]} Bf5 {[%emt 0:01:43]} 6. Nc3 {[%emt 0:05:08] LiveBook: 39 Games} a6 {[%emt 0:02:54] B01: Scandinavian Defence} 7. Bd3 {[%emt 0:01:19]} (7. Ba4 b5 8. Bb3 Nb6 9. Nge2 Nbxd5 10. Nxd5 Nxd5 11. O-O Bc8 12. Ng3 g6 13. Ne4 Bg7 14. Re1 h6 15. c3 {1-0 (58) Gonzalez Vidal,Y (2546)-Lopez Gonzalez,A (2338) Merida 2017}) 7... Bxd3 {[%emt 0:02:17]} 8. Qxd3 {[%emt 0:00:04]} Nb6 {[%emt 0:00:16]} 9. Nge2 {[%emt 0:00:04]} Nbxd5 {[%emt 0:01:53]} 10. a3 {[%emt 0:03:32]} Nxc3 $146 {[%emt 0:01:42]} ({Predecessor:} 10... e6 11. Bg5 Nxc3 12. Nxc3 {½-½ (12) Galko,A (1875)-Petro,J (2079) Hungary 2013}) 11. Nxc3 {[%emt 0:00:44]} e6 {[%emt 0:01:06]} 12. b4 {[%emt 0:09:04]} Be7 {[%emt 0:10:48]} 13. O-O {[%emt 0:00:55]} c6 {[%emt 0:03:13]} 14. Be3 {[%emt 0:01:23]} Nd5 {[%emt 0:02:00]} 15. Nd1 {[%emt 0:18:57]} Nxe3 {[%emt 0:01:19]} 16. Nxe3 {[%emt 0:00:17]} O-O {[%emt 0:02:52]} 17. Rfd1 {[%emt 0:03:37]} Qc7 {[%emt 0:05:21]} 18. Nc4 {[%emt 0:04:30]} Rfd8 {[%emt 0:04:16]} 19. Qe4 {[%emt 0:00:44]} Bd6 {[%emt 0:05:13]} 20. g3 {[%emt 0:04:36]} Be7 {[%emt 0:03:36]} 21. c3 {[%emt 0:02:36]} Bf8 {[%emt 0:04:55]} 22. a4 {[%emt 0:02:51]} Bd6 {[%emt 0:04:55]} 23. a5 {[%emt 0:01:43]} Qe7 {[%emt 0:00:18]} 24. f4 {[%emt 0:00:53]} Re8 {[%emt 0:03:22]} 25. Rf1 {[%emt 0:01:00]} Rad8 {[%emt 0:03:25]} 26. Rae1 {[%emt 0:01:52]} Qf8 {[%emt 0:01:18]} 27. Rf3 {[%emt 0:00:30]} Bc7 {[%emt 0:02:11]} 28. Rfe3 {[%emt 0:01:38]} g6 {[%emt 0:00:30]} 29. Qf3 {[%emt 0:00:30]} Rd5 {[%emt 0:06:14]} 30. R3e2 {[%emt 0:04:53]} Rdd8 31. Nd2 {[%emt 0:00:55]} Bd6 {[%emt 0:02:08]} 32. Ne4 {[%emt 0:07:20]} Be7 33. Kh1 {[%emt 0:00:30]} h5 {[%emt 0:04:45]} 34. h3 {[%emt 0:00:25]} Qg7 {[%emt 0:00:51]} 35. Nf2 {[%emt 0:06:46]} Rd5 36. g4 {[%emt 0:00:30]} Bh4 {[%emt 0:03:51]} 37. Rg1 {[%emt 0:00:30]} Bxf2 {[%emt 0:00:30]} 38. Qxf2 {[%emt 0:00:30]} Red8 {[%emt 0:00:30]} 39. Qf3 {[%emt 0:00:30]} Qh6 {[%emt 0:00:30]} 40. Kg2 {[%emt 0:00:30]} Kh7 {[%emt 0:00:30]} 41. Kf1 {[%emt 0:00:30]} R8d7 {[%emt 0:00:30]} 42. Re4 {[%emt 0:00:30]} Qf8 {[%emt 0:00:30]} 43. Qg3 {[%emt 0:00:30]} Qh6 {[%emt 0:00:30]} 44. Rg2 {[%emt 0:00:30]} Kh8 {[%emt 0:00:30]} 45. Ke2 {[%emt 0:00:30]} Rd8 {[%emt 0:00:30]} 46. Re3 {[%emt 0:00:30]} Rg8 {[%emt 0:00:30]} 47. Rf3 {[%emt 0:00:30]} Qh7 {[%emt 0:00:30]} 48. Rd3 {[%emt 0:00:30]} Qh6 {[%emt 0:00:30]} 49. c4 {[%emt 0:00:30]} Rd7 {[%emt 0:00:30]} 50. Kd2 {[%emt 0:00:30]} Rgd8 {[%emt 0:00:30]} 51. Qf2 {[%emt 0:00:30]} Kg8 {[%emt 0:00:30]} 52. Kc3 {[%emt 0:00:30]} Qh8 {[%emt 0:00:30]} 53. Qe3 {[%emt 0:00:30]} h4 {[%emt 0:00:30]} (53... hxg4 $11 54. Rxg4 Rxd4 55. Rxd4 Rxd4 56. Rxg6+ fxg6 57. Qxd4 Qxh3+ 58. Kb2 Qf5) 54. Rdd2 {[%emt 0:00:30]} Qf6 {[%emt 0:00:30]} 55. Qe4 {[%emt 0:00:30]} Kg7 {[%emt 0:00:30]} 56. Rgf2 $2 {[%emt 0:00:30]} Qe7 {[%emt 0:00:30]} 57. Qe5+ {[%emt 0:00:30]} Qf6 $2 {[%emt 0:00:30] [#]} (57... Kh7 $16) 58. Qe4 {[%emt 0:00:30]} ({White should play} 58. g5 $1 $18 {[%cal Rg5f6]} Qxe5 59. fxe5) 58... Qe7 {[%emt 0:00:30]} 59. Rf3 {[%emt 0:00:30]} f5 {[%emt 0:00:30]} 60. Qe5+ {[%emt 0:00:30]} Qf6 {[%emt 0:00:30]} 61. Qe3 {[%emt 0:00:30]} fxg4 {[%emt 0:00:30]} 62. hxg4 {[%emt 0:00:30]} Rh8 {[%emt 0:00:30]} 63. g5 {[%emt 0:00:30]} Qf5 {[%emt 0:00:30]} 64. Qe5+ {[%emt 0:00:30]} Qxe5 {[%emt 0:00:30]} 65. fxe5 {[%emt 0:00:30]} Rf7 {[%emt 0:00:30]} 66. Rxf7+ {[%emt 0:00:30]} Kxf7 {[%emt 0:00:30]} 67. b5 {[%emt 0:00:30]} axb5 {[%emt 0:00:30]} 68. cxb5 {[%emt 0:00:30]} cxb5 {[%emt 0:00:30]} 69. Kb4 {[%emt 0:00:30]} h3 {[%emt 0:00:30]} 70. Rh2 {[%emt 0:00:30]} Rh4 {[%emt 0:00:30]} 71. Kxb5 {[%emt 0:00:30]} Rxd4 {[%emt 0:00:30]} 72. Rxh3 {[%emt 0:00:30]} Rd5+ {[%emt 0:00:30]} 73. Kb6 {[%emt 0:00:30]} Rxe5 {[%emt 0:00:30]} 74. Rh7+ {[%emt 0:00:30]} Kg8 {[%emt 0:00:30]} 75. Rxb7 {[%emt 0:00:30]} Rxg5 {[%emt 0:00:30]} 76. a6 {[%emt 0:00:30]} Rg1 {[%emt 0:00:30]} 77. a7 {[%emt 0:00:30]} Ra1 {[%emt 0:00:30]} 78. Kc5 {[%emt 0:00:30]} g5 {[%emt 0:00:30]} 79. Kd6 {[%emt 0:00:30]} g4 {[%emt 0:00:30]} 80. Ke5 {[%emt 0:00:30]} g3 {[%emt 0:00:30]} 81. Rb8+ {[%emt 0:00:30]} 1-0

[Event "Guimaraes Open 2018"]
[Site "Guimaraes"]
[Date "2018.10.07"]
[Round "6"]
[White "Fernandes, Joao Pedro Murtinho"]
[Black "Santos, Jose Miguel Sereno"]
[Result "1/2-1/2"]
[ECO "B12"]
[WhiteElo "2067"]
[BlackElo "1646"]
[Annotator "NA"]
[PlyCount "81"]
[EventDate "2018.10.04"]
[EventType "swiss"]
[EventCountry "POR"]
[SourceTitle "playchess.com"]
[Source "ChessBase"]
[SourceQuality "1"]
[TimeControl "5400+30"]

1. e4 {[%emt 0:01:05]} c6 {[%emt 0:00:00]} 2. d4 {[%emt 0:00:40]} d5 {[%emt 0:00:00]} 3. e5 {[%emt 0:00:04]} c5 {[%emt 0:00:00]} 4. dxc5 {[%emt 0:00:57]} Nc6 {[%emt 0:00:56]} 5. Nf3 {[%emt 0:00:05]} Bg4 {[%emt 0:03:00]} 6. c3 {[%emt 0:00:24] B12: Caro-Kann: Advance Variation} e6 {[%emt 0:01:25]} 7. Be3 {[%emt 0:00:12]} (7. b4 a6 8. Nbd2 Nxe5 9. Qa4+ Nd7 10. Ne5 Ngf6 11. c4 a5 12. Nb3 axb4 13. Qb5 Be7 {0-1 (53) Topalov,V (2760)-Nakamura,H (2779) London 2016 CBM 176 [Roiz,M]}) 7... Bxf3 {[%emt 0:00:29]} 8. Qxf3 {[%emt 0:00:06]} Nxe5 {[%emt 0:00:20]} 9. Bb5+ {[%emt 0:00:20]} Nc6 {[%emt 0:00:36]} 10. O-O {[%emt 0:00:35] LiveBook: 26 Games} Nf6 {[%emt 0:01:12]} 11. c4 {[%emt 0:07:21]} a6 {[%emt 0:03:45]} 12. Ba4 {[%emt 0:00:54]} Qa5 {[%emt 0:01:12]} 13. Nc3 {[%emt 0:05:07]} Be7 {[%emt 0:10:27]} 14. Qg3 $146 {[%emt 0:11:58]} O-O $1 {[%emt 0:05:48]} 15. cxd5 {[%emt 0:11:10]} exd5 {[%emt 0:00:38]} 16. Bh6 {[%emt 0:06:02]} g6 {[%emt 0:02:01]} (16... Nh5 $14 17. Qf3 Nf6) 17. Bxf8 {[%emt 0:00:27]} Bxf8 {[%emt 0:00:10]} (17... Rxf8 $16 18. Rad1 Qxc5) 18. Bb3 {[%emt 0:12:08]} Qxc5 {[%emt 0:06:30]} 19. Qf3 {[%emt 0:01:38]} Bg7 {[%emt 0:00:59]} 20. Nxd5 {[%emt 0:01:01]} ({Weaker is} 20. Bxd5 Nd4 $14) 20... Nxd5 {[%emt 0:00:11]} 21. Qxd5 {[%emt 0:00:14]} Qxd5 {[%emt 0:02:26]} 22. Bxd5 {[%emt 0:00:07]} Nb4 {[%emt 0:00:09]} 23. Bxb7 {[%emt 0:03:19]} Rb8 {[%emt 0:00:13]} 24. Bf3 {[%emt 0:00:57]} Bxb2 {[%emt 0:00:49]} 25. Rad1 {[%emt 0:04:17]} Nxa2 {[%emt 0:00:40]} 26. Rd7 {[%emt 0:01:16]} Nc3 {[%emt 0:00:13]} 27. Ra7 {[%emt 0:07:28]} Rb6 {[%emt 0:01:56]} 28. h3 {[%emt 0:02:48]} Kg7 {[%emt 0:01:02]} 29. Re1 {[%emt 0:00:23]} Nb5 {[%emt 0:08:47]} 30. Rb7 {[%emt 0:00:37]} Rf6 {[%emt 0:00:15]} 31. Ree7 $16 {[%emt 0:04:43]} Bd4 {[%emt 0:00:59]} 32. Red7 {[%emt 0:01:06]} Bc5 {[%emt 0:01:14]} 33. Rd5 {[%emt 0:00:30]} Ba3 {[%emt 0:01:44]} 34. Rd1 {[%emt 0:01:39]} Bc5 {[%emt 0:00:29]} 35. Rdd7 {[%emt 0:01:17]} Nd6 {[%emt 0:02:43]} 36. Rbc7 {[%emt 0:01:01]} Bb4 {[%emt 0:00:05]} 37. Bd5 {[%emt 0:04:16]} a5 {[%emt 0:01:30]} 38. Bb3 {[%emt 0:00:32]} h5 {[%emt 0:00:48]} 39. Kf1 {[%emt 0:01:30]} h4 {[%emt 0:01:21]} 40. Ke2 {[%emt 0:01:31]} Rf5 {[%emt 0:02:03]} 41. f3 {[%emt 0:03:00]} 1/2-1/2

[Event "Guimaraes Open 2018"]
[Site "Guimaraes"]
[Date "2018.10.07"]
[Round "6"]
[White "Pintor, Simao Maciel Abranc"]
[Black "Monteiro, Paulo Alexandre Gom"]
[Result "1-0"]
[ECO "B23"]
[WhiteElo "2047"]
[BlackElo "1602"]
[Annotator "NA"]
[PlyCount "105"]
[EventDate "2018.10.04"]
[EventType "swiss"]
[EventCountry "POR"]
[SourceTitle "playchess.com"]
[Source "ChessBase"]
[SourceQuality "1"]
[TimeControl "5400+30"]

{[%evp 8,103,0,6,32767,-2,32767,32767,32767,32767,32767,32767,32767,-112,32767,-69,-66,32767,-104,-116,32767,-151,-104,32767,32767,-95,-80,32767,32767,32767,43,12,118,32767,32767,32767,121,32767,32767,74,32767,32767,32767,32767,318,32767,343,32767,335,32767,32767,32767,342,32767,32767,32767,32767,32767,32767,316,306,357,298,389,323,348,633,456,453,537,602,482,514,536,32767,32767,32767,32767,601,633,628,743,738,737,32767,32767,830,1051,32767,32767,32767,32767,32767,32767,32767,32767,1240,1912]} 1. e4 {[%emt 0:17:00]} c5 {[%emt 0:00:00]} 2. Nc3 {[%emt 0:00:06]} e6 {[%emt 0:00:00]} 3. f4 {[%emt 0:00:05]} d5 {[%emt 0:00:00]} 4. Nf3 {[%emt 0:00:06]} Nc6 {[%emt 0:00:20]} 5. Bb5 {[%emt 0:00:22]} Nf6 {[%emt 0:00:44]} 6. Bxc6+ {[%emt 0:02:26] LiveBook: 15 Games} bxc6 {[%emt 0:00:07]} 7. d3 {[%emt 0:00:45]} Be7 {[%emt 0:02:27]} 8. O-O {[%emt 0:00:11]} O-O {[%emt 0:00:42]} 9. Qe1 {[%emt 0:00:24] B23: Closed Sicilian: Lines without g3} Ba6 {[%emt 0:04:51]} 10. f5 {[%emt 0:02:12]} (10. e5 $11 Nd7 11. b3 (11. Qg3 f5 12. Kh1 Nb6 13. b3 c4 14. dxc4 dxc4 15. Rd1 Qc8 16. Bb2 c5 {0-1 (63) Hafiz,A (2324)-Karthikeyan,M (2580) New Delhi 2018})) 10... exf5 $146 {[%emt 0:03:07]} ({Predecessor:} 10... dxe4 11. Nxe4 exf5 12. Ng3 Bc8 13. Bg5 h6 14. Bd2 Re8 15. Bc3 c4 16. d4 f4 {0-1 (28) Oehen,R (1839)-Kelecevic,N (2214) Zuerich 2018}) 11. e5 {[%emt 0:00:44]} Ne8 {[%emt 0:16:30]} 12. Qg3 {[%emt 0:00:53]} Nc7 {[%emt 0:03:12]} 13. Ng5 {[%emt 0:02:22]} Qd7 {[%emt 0:06:25]} 14. Bd2 {[%emt 0:02:35]} (14. Qh3 $142 h6 15. Nf3) 14... Rab8 {[%emt 0:02:53]} 15. b3 {[%emt 0:00:51]} Rb4 {[%emt 0:07:56]} 16. h3 {[%emt 0:04:18]} h6 {[%emt 0:01:01]} 17. Nf3 {[%emt 0:04:07]} Kh7 {[%emt 0:02:05]} 18. Ne2 {[%emt 0:00:22]} Re4 {[%emt 0:04:28]} ({Better is} 18... Rbb8 $17) 19. Nf4 {[%emt 0:03:27]} Ne6 {[%emt 0:00:16]} (19... Rxf4 $1 $11 20. Qxf4 (20. Bxf4 c4 $14) 20... g5) 20. dxe4 {[%emt 0:02:01]} fxe4 {[%emt 0:02:08]} 21. Nh2 {[%emt 0:01:56]} Bxf1 {[%emt 0:00:16]} 22. Rxf1 {[%emt 0:00:04]} d4 {[%emt 0:02:29]} 23. Nxe6 {[%emt 0:00:32]} (23. Qg4 $18) 23... fxe6 {[%emt 0:04:51]} 24. Rxf8 {[%emt 0:00:12]} Bxf8 {[%emt 0:00:06]} 25. Qf4 {[%emt 0:00:49]} e3 {[%emt 0:00:33]} 26. Be1 {[%emt 0:00:49]} Qe8 {[%emt 0:03:06]} 27. Qe4+ {[%emt 0:01:09]} Kg8 {[%emt 0:00:30]} 28. c3 {[%emt 0:00:10]} Qd7 {[%emt 0:00:35]} 29. Nf3 {[%emt 0:00:07]} Qd5 {[%emt 0:01:45]} 30. Qxd5 {[%emt 0:00:30]} exd5 {[%emt 0:00:07]} 31. cxd4 {[%emt 0:00:05]} cxd4 {[%emt 0:00:05]} 32. Nxd4 {[%emt 0:00:09]} c5 {[%emt 0:00:12]} 33. Ne2 {[%emt 0:02:36]} d4 {[%emt 0:01:58]} 34. Nc1 {[%emt 0:00:06]} Kf7 {[%emt 0:00:37]} 35. Kf1 {[%emt 0:00:18]} Ke6 {[%emt 0:00:12]} 36. Nd3 {[%emt 0:00:05]} Kd5 $2 {[%emt 0:00:48]} (36... Be7 37. Ke2 Kd7) 37. Ke2 {[%emt 0:00:06]} Ke4 {[%emt 0:00:11]} 38. Ba5 {[%emt 0:00:32]} Kd5 {[%emt 0:01:17]} 39. Bc7 {[%emt 0:00:37]} g5 {[%emt 0:00:38]} 40. Bd8 {[%emt 0:01:20]} a6 {[%emt 0:01:44]} 41. g4 {[%emt 0:00:08]} Bg7 {[%emt 0:00:42]} 42. Be7 {[%emt 0:00:17]} Bxe5 {[%emt 0:00:24]} 43. Bxc5 {[%emt 0:00:23]} Bg7 {[%emt 0:00:49]} 44. a4 {[%emt 0:00:14]} Kc6 {[%emt 0:01:12]} 45. b4 {[%emt 0:00:09]} Kb7 {[%emt 0:02:02]} 46. Nc1 {[%emt 0:00:12]} Kc6 {[%emt 0:00:16]} 47. Kd3 {[%emt 0:00:05]} a5 {[%emt 0:00:31]} 48. Nb3 {[%emt 0:01:10]} axb4 {[%emt 0:00:08]} 49. Bxb4 {[%emt 0:00:30]} Kd5 {[%emt 0:00:18]} 50. Bc5 {[%emt 0:00:15]} e2 {[%emt 0:00:41]} 51. Kxe2 {[%emt 0:00:05]} Kc4 {[%emt 0:00:04] [#]} 52. Nxd4 $18 {[%emt 0:01:06]} Be5 {[%emt 0:01:07]} 53. Nf3 {[%emt 0:00:43]} 1-0

[Event "Guimaraes Open 2018"]
[Site "Guimaraes"]
[Date "2018.10.07"]
[Round "6"]
[White "Fidalgo, Daniel Neves"]
[Black "Costa, Paulo Jorge Lopes d"]
[Result "0-1"]
[ECO "A19"]
[WhiteElo "2018"]
[BlackElo "2191"]
[Annotator "NA"]
[PlyCount "74"]
[EventDate "2018.10.04"]
[EventType "swiss"]
[EventCountry "POR"]
[SourceTitle "playchess.com"]
[Source "ChessBase"]
[SourceQuality "1"]
[TimeControl "5400+30"]

1. c4 {[%emt 0:00:00]} Nf6 {[%emt 0:04:00]} 2. Nc3 {[%emt 0:00:15]} e6 {[%emt 0:00:10]} 3. e4 {[%emt 0:00:42]} c5 {[%emt 0:00:21]} 4. f4 {[%emt 0:11:35]} d6 {[%emt 0:06:06] LiveBook: 4 Partien A19: English Opening: Flohr-Mikenas System with 3...c5} (4... Nc6 5. Nf3 d5 6. e5 d4 7. exf6 dxc3 8. fxg7 cxd2+ 9. Bxd2 Bxg7 10. Qc2 Qb6 11. Bc3 Nd4 12. Bxd4 cxd4 {1-0 (31) Eljanov,P (2719)-L'Ami,E (2618) Doha 2014}) 5. g3 {[%emt 0:03:53]} Nc6 {[%emt 0:01:11]} 6. Bg2 {[%emt 0:00:36]} Be7 {[%emt 0:00:37]} 7. Nge2 {[%emt 0:01:07]} O-O {[%emt 0:00:50]} 8. O-O {[%emt 0:00:58]} a6 {[%emt 0:00:57]} 9. b3 {[%emt 0:07:49]} Qc7 {[%emt 0:07:04]} 10. h3 {[%emt 0:01:22]} Rb8 {[%emt 0:00:39]} 11. a4 $146 {[%emt 0:02:40]} ({Predecessor:} 11. d4) 11... b6 {[%emt 0:11:45]} 12. Kh1 {[%emt 0:19:20]} Bb7 {[%emt 0:01:16]} 13. d4 {[%emt 0:00:27]} cxd4 {[%emt 0:01:14]} 14. Nxd4 {[%emt 0:00:21]} Nxd4 {[%emt 0:04:36]} 15. Qxd4 {[%emt 0:00:51]} Nd7 {[%emt 0:00:15]} 16. Ba3 {[%emt 0:08:02]} Nc5 {[%emt 0:02:25]} 17. Bxc5 {[%emt 0:03:21]} (17. Rab1 $11) 17... bxc5 {[%emt 0:01:08]} 18. Qd3 {[%emt 0:00:29]} Bf6 {[%emt 0:02:43]} 19. Rab1 {[%emt 0:00:46]} Bc6 {[%emt 0:01:24]} 20. g4 {[%emt 0:05:21]} h6 {[%emt 0:05:51]} 21. g5 {[%emt 0:10:36]} hxg5 {[%emt 0:01:01]} 22. fxg5 {[%emt 0:00:24]} Be5 {[%emt 0:00:27]} 23. h4 {[%emt 0:01:01]} Qe7 {[%emt 0:02:51]} 24. Nd1 {[%emt 0:02:16]} (24. Ne2 $17 {keeps fighting.}) 24... g6 $17 {[%emt 0:03:16]} (24... f6 $19 25. gxf6 Rxf6 26. Rxf6 Qxf6) 25. Ne3 {[%emt 0:03:52]} f6 {[%emt 0:07:10]} 26. Ng4 {[%emt 0:00:11]} fxg5 {[%emt 0:00:48]} 27. Nxe5 {[%emt 0:00:07]} dxe5 {[%emt 0:00:09]} 28. Qg3 {[%emt 0:00:10]} Rf4 {[%emt 0:03:14]} 29. hxg5 {[%emt 0:04:35]} Rbf8 {[%emt 0:03:00]} 30. Rfe1 {[%emt 0:03:21]} Qh7+ {[%emt 0:08:56]} 31. Kg1 {[%emt 0:00:05]} Qh5 {[%emt 0:00:02]} 32. Qh3 {[%emt 0:01:59]} Rg4 {[%emt 0:04:38]} 33. Qxh5 {[%emt 0:00:32]} gxh5 {[%emt 0:00:02]} 34. b4 {[%emt 0:01:44]} h4 {[%emt 0:03:59]} 35. b5 {[%emt 0:01:55]} h3 {[%emt 0:01:26]} 36. bxc6 {[%emt 0:00:04]} Rxg2+ {[%emt 0:00:06]} 37. Kh1 {[%emt 0:00:04]} Rff2 0-1

[Event "Guimaraes Open 2018"]
[Site "Guimaraes"]
[Date "2018.10.07"]
[Round "6"]
[White "Silva, Goncalo Nuno Neto P"]
[Black "Herrera Reyes, Jose Antonio"]
[Result "1/2-1/2"]
[ECO "B40"]
[WhiteElo "1996"]
[BlackElo "2343"]
[Annotator "NA"]
[PlyCount "94"]
[EventDate "2018.10.04"]
[EventType "swiss"]
[EventCountry "POR"]
[SourceTitle "playchess.com"]
[Source "ChessBase"]
[SourceQuality "1"]
[TimeControl "5400+30"]

{[%evp 8,76,49,18,30,25,32767,32767,32767,32767,32767,32767,32767,32767,32767,-28,-18,-14,32767,-15,-8,-47,-26,-33,-5,-86,-48,-87,32767,-57,-48,-82,-35,-61,32767,-105,-41,-59,32767,-45,-26,-31,-34,-95,131,128,125,101,145,136,32767,214,227,228,32767,269,240,221,252,157,165,156,177,237,225,32767,32767,152,328,32767,428]} 1. e4 {[%emt 0:00:15]} c5 {[%emt 0:00:00]} 2. Nf3 {[%emt 0:00:03]} e6 {[%emt 0:00:00]} 3. g3 {[%emt 0:00:06]} b6 {[%emt 0:00:02]} 4. Bg2 {[%emt 0:00:09]} Bb7 {[%emt 0:00:06]} 5. d3 {[%emt 0:01:06] LiveBook: 170 Games} Qc7 {[%emt 0:00:03] B40: Sicilian: 2...e6, Unusual lines} (5... d6 6. O-O g6 7. Re1 Bg7 8. d4 cxd4 9. Nxd4 a6 10. Nc3 Ne7 11. Bg5 O-O 12. Qd2 Qc7 13. Bh6 {0-1 (38) Haddouche,M (2505)-Almasi,Z (2682) Riadh 2017}) 6. Nc3 {[%emt 0:00:22]} a6 {[%emt 0:00:05]} 7. O-O {[%emt 0:00:52]} d6 {[%emt 0:00:07]} 8. a4 {[%emt 0:00:07]} Nd7 {[%emt 0:00:07]} 9. d4 {[%emt 0:00:11]} cxd4 {[%emt 0:00:21]} 10. Qxd4 $146 {[%emt 0:02:37]} ({Predecessor:} 10. Nxd4 Ngf6 11. Kh1 Be7 {0-1 (44) Martin,T (2221)-Schramm,C (2325) Bayern 2011}) 10... Ngf6 {[%emt 0:00:18]} 11. Rd1 {[%emt 0:09:46]} Be7 {[%emt 0:00:30]} 12. Be3 {[%emt 0:06:27]} O-O {[%emt 0:00:59]} 13. h3 {[%emt 0:18:03]} Rac8 {[%emt 0:00:45]} 14. g4 {[%emt 0:03:59]} Rfe8 {[%emt 0:06:37]} 15. g5 {[%emt 0:06:55]} Nh5 {[%emt 0:00:06]} 16. Qd2 {[%emt 0:00:35]} (16. h4 $11 {remains equal.}) 16... g6 {[%emt 0:00:26]} 17. Rac1 {[%emt 0:02:42]} (17. Qd4 $11) 17... Qb8 {[%emt 0:00:55]} 18. Nh2 {[%emt 0:00:47]} Ne5 {[%emt 0:05:37]} 19. b3 {[%emt 0:00:46]} f5 {[%emt 0:01:11]} 20. gxf6 {[%emt 0:03:46]} Nxf6 {[%emt 0:02:41]} 21. f4 {[%emt 0:03:17]} Nf7 {[%emt 0:02:00]} (21... Ned7 $17 22. Ng4 Qc7) 22. Ng4 {[%emt 0:02:01]} Qa8 {[%emt 0:04:27]} 23. Nxf6+ {[%emt 0:14:13]} Bxf6 {[%emt 0:00:02]} 24. Bd4 {[%emt 0:00:16]} e5 {[%emt 0:01:33]} 25. Bxb6 {[%emt 0:00:12]} Rxc3 $2 {[%emt 0:01:57]} (25... exf4 $17 {and life is bright.} 26. Nd5 Bxd5 27. Qxd5 Qxd5 28. Rxd5 Bg5) 26. Qxc3 {[%emt 0:00:35]} Bxe4 {[%emt 0:00:02]} 27. Bxe4 {[%emt 0:01:32]} Qxe4 {[%emt 0:00:02] [#]} 28. Rf1 $1 {[%emt 0:00:01]} Qf5 {[%emt 0:03:20] [#]} 29. fxe5 $1 {[%emt 0:07:02]} Qg5+ {[%emt 0:00:31]} 30. Kh1 {[%emt 0:02:06]} Rxe5 {[%emt 0:01:26]} 31. Qc8+ {[%emt 0:00:22]} Kg7 {[%emt 0:00:09]} 32. Qg4 {[%emt 0:00:09]} Qd2 {[%emt 0:03:01]} 33. Rcd1 {[%emt 0:00:52]} (33. Qf3 $18 Re6 34. Rcd1 Qxc2 35. Rde1) 33... Qxc2 {[%emt 0:01:32]} 34. Bd4 {[%emt 0:00:17]} h5 {[%emt 0:01:08] [#]} 35. Qf3 $1 {[%emt 0:00:20]} Rf5 {[%emt 0:00:02]} 36. Bxf6+ {[%emt 0:00:02]} Kxf6 {[%emt 0:00:07]} 37. Qd5 {[%emt 0:02:23]} Qe2 $2 {[%emt 0:04:06]} (37... Ne5 $16 {ist eine bessere Verteidigung.}) 38. Qd4+ {[%emt 0:03:04]} Ne5 $18 {[%emt 0:03:55]} 39. Qxd6+ {[%emt 0:07:39]} Kg7 {[%emt 0:00:00]} 40. Rxf5 {[%emt 0:00:13]} Qe4+ {[%emt 0:00:01]} 41. Kg1 {[%emt 0:00:03]} Qxf5 {[%emt 0:00:41]} 42. Qc7+ {[%emt 0:00:51]} Kh6 {[%emt 0:00:26]} 43. Qc1+ {[%emt 0:00:02]} Kg7 {[%emt 0:00:21]} 44. Qc7+ {[%emt 0:02:44]} Kh6 {[%emt 0:00:02]} 45. Qc1+ {[%emt 0:00:33]} Kg7 {[%emt 0:00:04]} 46. Qc7+ {[%emt 0:02:02]} Kh6 {[%emt 0:01:38]} 47. Qc1+ {[%emt 0:00:01]} Kg7 {[%emt 0:00:06]} 1/2-1/2

[Event "Guimaraes Open 2018"]
[Site "Guimaraes"]
[Date "2018.10.07"]
[Round "6"]
[White "Barbosa, Paulo Jorge Pereira"]
[Black "Gama, Joao Goncalo Cereje"]
[Result "1/2-1/2"]
[ECO "A39"]
[WhiteElo "1982"]
[BlackElo "1598"]
[Annotator "NA"]
[PlyCount "64"]
[EventDate "2018.10.04"]
[EventType "swiss"]
[EventCountry "POR"]
[SourceTitle "playchess.com"]
[Source "ChessBase"]
[SourceQuality "1"]
[TimeControl "5400+30"]

1. c4 {[%emt 0:00:29]} c5 {[%emt 0:00:00]} 2. g3 {[%emt 0:00:06]} g6 {[%emt 0:00:00]} 3. Bg2 {[%emt 0:00:09]} Bg7 {[%emt 0:00:05]} 4. Nc3 {[%emt 0:00:35]} Nc6 {[%emt 0:00:58]} 5. Nf3 {[%emt 0:00:27]} Nf6 {[%emt 0:00:43]} 6. O-O {[%emt 0:00:13]} O-O {[%emt 0:00:05]} 7. d4 {[%emt 0:00:02]} cxd4 {[%emt 0:11:14]} 8. Nxd4 {[%emt 0:00:07]} Ne5 {[%emt 0:01:22]} 9. b3 {[%emt 0:01:59] LiveBook: 4 Games} d6 {[%emt 0:08:07]} 10. Bb2 {[%emt 0:04:04]} Rb8 {[%emt 0:03:13]} 11. Rc1 {[%emt 0:01:57] E65: Königsindisch (Jugoslawische Variante)} (11. h3 Bd7 12. Qd2 h5 13. f4 Nc6 14. Nxc6 Bxc6 15. Rfd1 Bxg2 16. Kxg2 Re8 17. e4 Qc8 18. Qe2 b6 {0-1 (34) Valov,I (2213)-Andriasian,Z (2622) St Petersburg 2014}) 11... Bd7 {[%emt 0:01:53]} 12. e3 {[%emt 0:06:59]} Qc8 $146 {[%emt 0:09:41]} ({Vorgänger:} 12... a6 13. Nce2 Re8 14. a3 Qb6 15. Bc3 Rec8 16. Qd2 Qd8 {0-1 (56) Makhnev,P (1519)-Drygalov,S (2224) Nizhny Tagil 2014}) 13. Nd5 {[%emt 0:00:46]} Re8 {[%emt 0:01:33]} 14. Ba3 {[%emt 0:03:53]} Nxd5 {[%emt 0:06:32]} 15. cxd5 {[%emt 0:03:56]} Qd8 {[%emt 0:00:05]} 16. Qd2 {[%emt 0:01:06]} Qb6 {[%emt 0:03:01]} 17. Bb4 {[%emt 0:02:14]} Rbc8 {[%emt 0:05:51]} 18. Rfd1 {[%emt 0:01:58]} a6 {[%emt 0:03:07]} 19. Ba5 {[%emt 0:01:09]} Qa7 {[%emt 0:00:08]} 20. h3 {[%emt 0:03:55]} b6 {[%emt 0:03:17]} (20... Rxc1 $14 21. Rxc1 Rc8) 21. Bc3 {[%emt 0:00:22]} g5 {[%emt 0:03:17]} 22. f4 {[%emt 0:06:28]} gxf4 {[%emt 0:01:03]} 23. gxf4 {[%emt 0:00:32]} (23. exf4 $18 b5 24. Kh2 (24. fxe5 dxe5 25. Kf1 exd4 $11)) 23... Ng6 {[%emt 0:00:17]} 24. Nc6 {[%emt 0:02:00]} Bxc3 {[%emt 0:02:38]} 25. Rxc3 {[%emt 0:00:52]} (25. Nxa7 $2 {perishes.} Bxd2 26. Nxc8 Bxe3+ 27. Kh1 Rxc8 $19) 25... Bxc6 {[%emt 0:00:06]} 26. dxc6 {[%emt 0:00:42]} b5 {[%emt 0:00:47]} 27. Kh2 {[%emt 0:02:44]} Kh8 $18 {[%emt 0:02:00]} 28. Qb2 {[%emt 0:01:54]} f6 {[%emt 0:01:26]} 29. Rcd3 {[%emt 0:07:07]} Rg8 {[%emt 0:02:05]} 30. R1d2 {[%emt 0:03:26]} Nh4 {[%emt 0:02:48]} 31. Bh1 {[%emt 0:01:03]} Nf5 {[%emt 0:01:01]} 32. Re2 {[%emt 0:00:50]} Ng3 {[%emt 0:01:28]} 1/2-1/2